Workbook

Sheet Afstand
J1: Controle status | L1: 0
J3: rangnr | K3: eh | L3: fact | M3: mcht | AV3: 1 | BC3: 1
J4: 1 | K4: mm | L4: 0.001 | M4: =LOG(L4) -> -3 | AV4: 0 | BC4: 0
J5: 2 | K5: cm | L5: 0.01 | M5: =LOG(L5) -> -2 | AV5: 2 | BC5: 2
J6: 3 | K6: dm | L6: 0.1 | M6: -1
J7: 4 | K7: m | L7: 1 | M7: 0
J8: 5 | K8: km | L8: 1000 | M8: 3
J9: 6 | K9: mm | L9: 0.001 | M9: =LOG(L9) -> -3
J10: 7 | K10: cm | L10: 0.01 | M10: -2
J11: 8 | K11: dm | L11: 0.1 | M11: -1
J12: 9 | K12: m | L12: 1 | M12: 0
AL15: Omrekenen van afstandseenheden: mm, cm, dm, m en km
AL16: Vul bij de machten van 10 alleen getallen tussen 9 en -9 in. Gebruik bij de decimale getallen de komma (0,0…) en niet de punt (0.00…).
A17: Random | E17: Random vastgezet | K17: rnd(get) | L17: rnd(mcht) | M17: rnd(eh1) | N17: eh1 | O17: mcht(eh1) | P17: rnd(eh2) | Q17: eh2 | R17: mcht(eh2) | S17: ant(get) | T17: ant(mcht)
A18: =ROUND((0.5+RAND()*9),0) -> 9 | B18: =ROUND((-3.5+RAND()*7),0) -> 1 | C18: =ROUND((0.5+RAND()*5),0) -> 4 | D18: =C18+ROUND((0.5+RAND()*4),0) -> 5 | E18: 1 | F18: 3 | G18: 5 | H18: 8 | J18: Opgave 1 | K18: =E18 -> 1 | L18: =F18 -> 3 | M18: =G18 -> 5 | N18: =VLOOKUP(M18,$J$4:$K$8,2,FALSE) -> km | O18: =VLOOKUP(M18,$J$4:$M$8,4) -> 3 | P18: =H18 -> 8 | Q18: =VLOOKUP(P18,$J$4:$K$12,2,FALSE) -> dm | R18: =VLOOKUP(P18,$J$4:$M$12,4,FALSE) -> -1 | S18: =K18 -> 1 | T18: =L18+O18-R18 -> 7 | V18: =K18 -> 1 | W18: ·10^ | X18: =L18 -> 3 | Y18: =N18 -> km | Z18: = | AA18: =S18 -> 1 | AB18: ·10^ | AC18: =T18 -> 7 | AD18: =Q18 -> dm | AF18: =K18*10^L18 -> 1000 | AG18: =N18 -> km | AH18: = | AI18: =S18*10^T18 -> 10000000 | AJ18: =Q18 -> dm | AL18: Opgave 1 | AM18: =K18 -> 1 | AN18: ·10 | AO18: =L18 -> 3 | AP18: =N18 -> km | AQ18: = | AR18: =S18 -> 1 | AS18: ·10 | AU18: =Q18 -> dm | AV18: =IF($L$1=1,1,IF(AT18=T18,2,0)) -> 0 | AX18: =K18*10^L18 -> 1000 | AY18: =N18 -> km | AZ18: = | BB18: =Q18 -> dm | BC18: =IF($L$1=1,1,IF(BA18=AI18,2,0)) -> 0
A19: =ROUND((0.5+RAND()*9),0) -> 5 | B19: =ROUND((-3.5+RAND()*7),0) -> -3 | C19: =ROUND((0.5+RAND()*5),0) -> 5 | D19: =C19+ROUND((0.5+RAND()*4),0) -> 6 | E19: 3 | F19: -3 | G19: 4 | H19: 8 | J19: Opgave 2 | K19: =E19 -> 3 | L19: =F19 -> -3 | M19: =G19 -> 4 | N19: =VLOOKUP(M19,$J$4:$K$8,2,FALSE) -> m | O19: =VLOOKUP(M19,$J$4:$M$8,4) -> 0 | P19: =H19 -> 8 | Q19: =VLOOKUP(P19,$J$4:$K$12,2,FALSE) -> dm | R19: =VLOOKUP(P19,$J$4:$M$12,4,FALSE) -> -1 | S19: =K19 -> 3 | T19: =L19+O19-R19 -> -2 | V19: =K19 -> 3 | W19: ·10^ | X19: =L19 -> -3 | Y19: =N19 -> m | Z19: = | AA19: =S19 -> 3 | AB19: ·10^ | AC19: =T19 -> -2 | AD19: =Q19 -> dm | AF19: =K19*10^L19 -> 0.003 | AG19: =N19 -> m | AH19: = | AI19: =S19*10^T19 -> 0.03 | AJ19: =Q19 -> dm | AL19: Opgave 2 | AM19: =K19 -> 3 | AN19: ·10 | AO19: =L19 -> -3 | AP19: =N19 -> m | AQ19: = | AR19: =S19 -> 3 | AS19: ·10 | AU19: =Q19 -> dm | AV19: =IF($L$1=1,1,IF(AT19=T19,2,0)) -> 0 | AX19: =K19*10^L19 -> 0.003 | AY19: =N19 -> m | AZ19: = | BB19: =Q19 -> dm | BC19: =IF($L$1=1,1,IF(BA19=AI19,2,0)) -> 0
A20: 2 | B20: -1 | C20: 1 | D20: 4 | E20: 6 | F20: -3 | G20: 4 | H20: 8 | J20: Opgave 3 | K20: 6 | L20: -3 | M20: 4 | N20: m | O20: 0 | P20: 8 | Q20: dm | R20: -1 | S20: 6 | T20: -2 | V20: 6 | W20: ·10^ | X20: -3 | Y20: m | Z20: = | AA20: 6 | AB20: ·10^ | AC20: -2 | AD20: dm | AF20: 0.006 | AG20: m | AH20: = | AI20: 0.06 | AJ20: dm | AL20: Opgave 3 | AM20: 6 | AN20: ·10 | AO20: -3 | AP20: m | AQ20: = | AR20: 6 | AS20: ·10 | AU20: dm | AV20: 0 | AX20: 0.006 | AY20: m | AZ20: = | BB20: dm | BC20: 0
A21: 2 | B21: -1 | C21: 4 | D21: 6 | E21: 3 | F21: 0 | G21: 1 | H21: 5 | J21: Opgave 4 | K21: 3 | L21: 0 | M21: 1 | N21: mm | O21: -3 | P21: 5 | Q21: km | R21: 3 | S21: 3 | T21: -6 | V21: 3 | W21: ·10^ | X21: 0 | Y21: mm | Z21: = | AA21: 3 | AB21: ·10^ | AC21: -6 | AD21: km | AF21: 3 | AG21: mm | AH21: = | AI21: 3e-06 | AJ21: km | AL21: Opgave 4 | AM21: 3 | AN21: ·10 | AO21: 0 | AP21: mm | AQ21: = | AR21: 3 | AS21: ·10 | AU21: km | AV21: 0 | AX21: 3 | AY21: mm | AZ21: = | BB21: km | BC21: 0
A22: 1 | B22: -3 | C22: 3 | D22: 4 | E22: 2 | F22: 0 | G22: 1 | H22: 3 | J22: Opgave 5 | K22: 2 | L22: 0 | M22: 1 | N22: mm | O22: -3 | P22: 3 | Q22: dm | R22: -1 | S22: 2 | T22: -2 | V22: 2 | W22: ·10^ | X22: 0 | Y22: mm | Z22: = | AA22: 2 | AB22: ·10^ | AC22: -2 | AD22: dm | AF22: 2 | AG22: mm | AH22: = | AI22: 0.02 | AJ22: dm | AL22: Opgave 5 | AM22: 2 | AN22: ·10 | AO22: 0 | AP22: mm | AQ22: = | AR22: 2 | AS22: ·10 | AU22: dm | AV22: 0 | AX22: 2 | AY22: mm | AZ22: = | BB22: dm | BC22: 0
A23: 8 | B23: 0 | C23: 3 | D23: 5 | E23: 8 | F23: 2 | G23: 2 | H23: 6 | J23: Opgave 6 | K23: 8 | L23: 2 | M23: 2 | N23: cm | O23: -2 | P23: 6 | Q23: mm | R23: -3 | S23: 8 | T23: 3 | V23: 8 | W23: ·10^ | X23: 2 | Y23: cm | Z23: = | AA23: 8 | AB23: ·10^ | AC23: 3 | AD23: mm | AF23: 800 | AG23: cm | AH23: = | AI23: 8000 | AJ23: mm | AL23: Opgave 6 | AM23: 8 | AN23: ·10 | AO23: 2 | AP23: cm | AQ23: = | AR23: 8 | AS23: ·10 | AU23: mm | AV23: 0 | AX23: 800 | AY23: cm | AZ23: = | BB23: mm | BC23: 0
A24: 3 | B24: 0 | C24: 3 | D24: 7 | E24: 1 | F24: 3 | G24: 1 | H24: 2 | J24: Opgave 7 | K24: 1 | L24: 3 | M24: 1 | N24: mm | O24: -3 | P24: 2 | Q24: cm | R24: -2 | S24: 1 | T24: 2 | V24: 1 | W24: ·10^ | X24: 3 | Y24: mm | Z24: = | AA24: 1 | AB24: ·10^ | AC24: 2 | AD24: cm | AF24: 1000 | AG24: mm | AH24: = | AI24: 100 | AJ24: cm | AL24: Opgave 7 | AM24: 1 | AN24: ·10 | AO24: 3 | AP24: mm | AQ24: = | AR24: 1 | AS24: ·10 | AU24: cm | AV24: 0 | AX24: 1000 | AY24: mm | AZ24: = | BB24: cm | BC24: 0
A25: 2 | B25: 3 | C25: 5 | D25: 7 | E25: 8 | F25: 1 | G25: 2 | H25: 3 | J25: Opgave 8 | K25: 8 | L25: 1 | M25: 2 | N25: cm | O25: -2 | P25: 3 | Q25: dm | R25: -1 | S25: 8 | T25: 0 | V25: 8 | W25: ·10^ | X25: 1 | Y25: cm | Z25: = | AA25: 8 | AB25: ·10^ | AC25: 0 | AD25: dm | AF25: 80 | AG25: cm | AH25: = | AI25: 8 | AJ25: dm | AL25: Opgave 8 | AM25: 8 | AN25: ·10 | AO25: 1 | AP25: cm | AQ25: = | AR25: 8 | AS25: ·10 | AU25: dm | AV25: 2 | AX25: 80 | AY25: cm | AZ25: = | BB25: dm | BC25: 0
A26: 1 | B26: 3 | C26: 4 | D26: 6 | E26: 6 | F26: 2 | G26: 1 | H26: 4 | J26: Opgave 9 | K26: 6 | L26: 2 | M26: 1 | N26: mm | O26: -3 | P26: 4 | Q26: m | R26: 0 | S26: 6 | T26: -1 | V26: 6 | W26: ·10^ | X26: 2 | Y26: mm | Z26: = | AA26: 6 | AB26: ·10^ | AC26: -1 | AD26: m | AF26: 600 | AG26: mm | AH26: = | AI26: 0.6 | AJ26: m | AL26: Opgave 9 | AM26: 6 | AN26: ·10 | AO26: 2 | AP26: mm | AQ26: = | AR26: 6 | AS26: ·10 | AU26: m | AV26: 0 | AX26: 600 | AY26: mm | AZ26: = | BB26: m | BC26: 0
A27: 3 | B27: 1 | C27: 5 | D27: 8 | E27: 2 | F27: -2 | G27: 2 | H27: 4 | J27: Opgave 10 | K27: 2 | L27: -2 | M27: 2 | N27: cm | O27: -2 | P27: 4 | Q27: m | R27: 0 | S27: 2 | T27: -4 | V27: 2 | W27: ·10^ | X27: -2 | Y27: cm | Z27: = | AA27: 2 | AB27: ·10^ | AC27: -4 | AD27: m | AF27: 0.02 | AG27: cm | AH27: = | AI27: 0.0002 | AJ27: m | AL27: Opgave 10 | AM27: 2 | AN27: ·10 | AO27: -2 | AP27: cm | AQ27: = | AR27: 2 | AS27: ·10 | AU27: m | AV27: 0 | AX27: 0.02 | AY27: cm | AZ27: = | BB27: m | BC27: 0
AL29: Aantal goed: | AV29: =COUNTIF(AV18:AV27,2) -> 1 | BC29: =COUNTIF(BC18:BC27,2) -> 0
AN33: Druk op de knop om jouw antwoorden te controleren
AN39: Druk op de knop voor 10 nieuwe opgaven
AL43: Heb je vragen of denk je dat er iets niet klopt, maak dan een schermafdruk (Alt-PrtScr),
AL44: plak de schermafdruk in een mailtje (Ctrl-v) en stuur het mailtje naar jouw vakdocent.
AL45: Gemaakt door: Frank van Doremalen
AL46: Dit werk valt onder een Creative Commons Naamsvermelding-NietCommercieel-GelijkDelen 4.0 Internationaal-licentie.

Sheet Oppervlakte
J1: Controle status | L1: 0
J3: rangnr | K3: eh | L3: fact | M3: mcht | AV3: 1 | BC3: 1
J4: 1 | K4: mm² | L4: 1e-06 | M4: =LOG(L4) -> -6 | AV4: 0 | BC4: 0
J5: 2 | K5: cm² | L5: 0.0001 | M5: =LOG(L5) -> -4 | AV5: 2 | BC5: 2
J6: 3 | K6: dm² | L6: 0.01 | M6: -2
J7: 4 | K7: m² | L7: 1 | M7: 0
J8: 5 | K8: mm² | L8: 1e-06 | M8: -6
J9: 6 | K9: cm² | L9: 0.0001 | M9: =LOG(L9) -> -4
J10: 7 | K10: dm² | L10: 0.01 | M10: -2
AL13: Omrekenen van oppervlakte eenheden: mm2, cm2, dm2 en m2
AL14: Vul bij de machten van 10 alleen getallen tussen 9 en -9 in. Gebruik bij de decimale getallen de komma (0,0…) en niet de punt (0.00…).
A15: Random | E15: Random vastgezet | K15: rnd(get) | L15: rnd(mcht) | M15: rnd(eh1) | N15: eh1 | O15: mcht(eh1) | P15: rnd(eh2) | Q15: eh2 | R15: mcht(eh2) | S15: ant(get) | T15: ant(mcht)
A16: =ROUND((0.5+RAND()*9),0) -> 8 | B16: =ROUND((-3.5+RAND()*7),0) -> -3 | C16: =ROUND((0.5+RAND()*4),0) -> 2 | D16: =C16+ROUND((0.5+RAND()*3),0) -> 4 | E16: 5 | F16: -2 | G16: 3 | H16: 5 | J16: Opgave 1 | K16: =E16 -> 5 | L16: =F16 -> -2 | M16: =G16 -> 3 | N16: =VLOOKUP(M16,$J$4:$K$8,2,FALSE) -> dm² | O16: =VLOOKUP(M16,$J$4:$M$8,4) -> -2 | P16: =H16 -> 5 | Q16: =VLOOKUP(P16,$J$4:$K$10,2,FALSE) -> mm² | R16: =VLOOKUP(P16,$J$4:$M$10,4,FALSE) -> -6 | S16: =K16 -> 5 | T16: =L16+O16-R16 -> 2 | V16: =K16 -> 5 | W16: ·10^ | X16: =L16 -> -2 | Y16: =N16 -> dm² | Z16: = | AA16: =S16 -> 5 | AB16: ·10^ | AC16: =T16 -> 2 | AD16: =Q16 -> mm² | AF16: =K16*10^L16 -> 0.05 | AG16: =N16 -> dm² | AH16: = | AI16: =S16*10^T16 -> 500 | AJ16: =Q16 -> mm² | AL16: Opgave 1 | AM16: =K16 -> 5 | AN16: ·10 | AO16: =L16 -> -2 | AP16: =N16 -> dm² | AQ16: = | AR16: =S16 -> 5 | AS16: ·10 | AU16: =Q16 -> mm² | AV16: =IF($L$1=1,1,IF(AT16=T16,2,0)) -> 0 | AX16: =K16*10^L16 -> 0.05 | AY16: =N16 -> dm² | AZ16: = | BB16: =Q16 -> mm² | BC16: =IF($L$1=1,1,IF(BA16=AI16,2,0)) -> 0
A17: =ROUND((0.5+RAND()*9),0) -> 4 | B17: =ROUND((-3.5+RAND()*7),0) -> 0 | C17: =ROUND((0.5+RAND()*4),0) -> 2 | D17: =C17+ROUND((0.5+RAND()*3),0) -> 5 | E17: 2 | F17: 2 | G17: 2 | H17: 4 | J17: Opgave 2 | K17: =E17 -> 2 | L17: 2 | M17: 2 | N17: =VLOOKUP(M17,$J$4:$K$8,2,FALSE) -> cm² | O17: =VLOOKUP(M17,$J$4:$M$8,4) -> -4 | P17: =H17 -> 4 | Q17: m² | R17: 0 | S17: =K17 -> 2 | T17: =L17+O17-R17 -> -2 | V17: =K17 -> 2 | W17: ·10^ | X17: =L17 -> 2 | Y17: =N17 -> cm² | Z17: = | AA17: =S17 -> 2 | AB17: ·10^ | AC17: =T17 -> -2 | AD17: =Q17 -> m² | AF17: =K17*10^L17 -> 200 | AG17: =N17 -> cm² | AH17: = | AI17: =S17*10^T17 -> 0.02 | AJ17: =Q17 -> m² | AL17: Opgave 2 | AM17: =K17 -> 2 | AN17: ·10 | AO17: =L17 -> 2 | AP17: =N17 -> cm² | AQ17: = | AR17: =S17 -> 2 | AS17: ·10 | AU17: =Q17 -> m² | AV17: =IF($L$1=1,1,IF(AT17=T17,2,0)) -> 0 | AX17: =K17*10^L17 -> 200 | AY17: =N17 -> cm² | AZ17: = | BB17: =Q17 -> m² | BC17: =IF($L$1=1,1,IF(BA17=AI17,2,0)) -> 0
A18: 4 | B18: 1 | C18: 4 | D18: 7 | E18: 8 | F18: 0 | G18: 2 | H18: 4 | J18: Opgave 3 | K18: 8 | L18: 0 | M18: 2 | N18: cm² | O18: -4 | P18: 4 | Q18: m² | R18: 0 | S18: 8 | T18: -4 | V18: 8 | W18: ·10^ | X18: 0 | Y18: cm² | Z18: = | AA18: 8 | AB18: ·10^ | AC18: -4 | AD18: m² | AF18: 8 | AG18: cm² | AH18: = | AI18: 0.0008 | AJ18: m² | AL18: Opgave 3 | AM18: 8 | AN18: ·10 | AO18: 0 | AP18: cm² | AQ18: = | AR18: 8 | AS18: ·10 | AU18: m² | AV18: 0 | AX18: 8 | AY18: cm² | AZ18: = | BB18: m² | BC18: 0
A19: 2 | B19: 2 | C19: 2 | D19: 4 | E19: 4 | F19: 3 | G19: 2 | H19: 3 | J19: Opgave 4 | K19: 4 | L19: 3 | M19: 2 | N19: cm² | O19: -4 | P19: 3 | Q19: dm² | R19: -2 | S19: 4 | T19: 1 | V19: 4 | W19: ·10^ | X19: 3 | Y19: cm² | Z19: = | AA19: 4 | AB19: ·10^ | AC19: 1 | AD19: dm² | AF19: 4000 | AG19: cm² | AH19: = | AI19: 40 | AJ19: dm² | AL19: Opgave 4 | AM19: 4 | AN19: ·10 | AO19: 3 | AP19: cm² | AQ19: = | AR19: 4 | AS19: ·10 | AU19: dm² | AV19: 0 | AX19: 4000 | AY19: cm² | AZ19: = | BB19: dm² | BC19: 0
A20: 2 | B20: 1 | C20: 4 | D20: 6 | E20: 3 | F20: 3 | G20: 2 | H20: 3 | J20: Opgave 5 | K20: 3 | L20: 3 | M20: 2 | N20: cm² | O20: -4 | P20: 3 | Q20: dm² | R20: -2 | S20: 3 | T20: 1 | V20: 3 | W20: ·10^ | X20: 3 | Y20: cm² | Z20: = | AA20: 3 | AB20: ·10^ | AC20: 1 | AD20: dm² | AF20: 3000 | AG20: cm² | AH20: = | AI20: 30 | AJ20: dm² | AL20: Opgave 5 | AM20: 3 | AN20: ·10 | AO20: 3 | AP20: cm² | AQ20: = | AR20: 3 | AS20: ·10 | AU20: dm² | AV20: 0 | AX20: 3000 | AY20: cm² | AZ20: = | BB20: dm² | BC20: 0
A21: 6 | B21: -2 | C21: 4 | D21: 5 | E21: 8 | F21: -2 | G21: 3 | H21: 5 | J21: Opgave 6 | K21: 8 | L21: -2 | M21: 3 | N21: dm² | O21: -2 | P21: 5 | Q21: mm² | R21: -6 | S21: 8 | T21: 2 | V21: 8 | W21: ·10^ | X21: -2 | Y21: dm² | Z21: = | AA21: 8 | AB21: ·10^ | AC21: 2 | AD21: mm² | AF21: 0.08 | AG21: dm² | AH21: = | AI21: 800 | AJ21: mm² | AL21: Opgave 6 | AM21: 8 | AN21: ·10 | AO21: -2 | AP21: dm² | AQ21: = | AR21: 8 | AS21: ·10 | AU21: mm² | AV21: 0 | AX21: 0.08 | AY21: dm² | AZ21: = | BB21: mm² | BC21: 0
A22: 2 | B22: 2 | C22: 1 | D22: 3 | E22: 3 | F22: 1 | G22: 4 | H22: 7 | J22: Opgave 7 | K22: 3 | L22: 1 | M22: 4 | N22: m² | O22: 0 | P22: 7 | Q22: dm² | R22: -2 | S22: 3 | T22: 3 | V22: 3 | W22: ·10^ | X22: 1 | Y22: m² | Z22: = | AA22: 3 | AB22: ·10^ | AC22: 3 | AD22: dm² | AF22: 30 | AG22: m² | AH22: = | AI22: 3000 | AJ22: dm² | AL22: Opgave 7 | AM22: 3 | AN22: ·10 | AO22: 1 | AP22: m² | AQ22: = | AR22: 3 | AS22: ·10 | AU22: dm² | AV22: 0 | AX22: 30 | AY22: m² | AZ22: = | BB22: dm² | BC22: 0
A23: 9 | B23: -3 | C23: 4 | D23: 6 | E23: 7 | F23: 1 | G23: 4 | H23: 5 | J23: Opgave 8 | K23: 7 | L23: 1 | M23: 4 | N23: m² | O23: 0 | P23: 5 | Q23: mm² | R23: -6 | S23: 7 | T23: 7 | V23: 7 | W23: ·10^ | X23: 1 | Y23: m² | Z23: = | AA23: 7 | AB23: ·10^ | AC23: 7 | AD23: mm² | AF23: 70 | AG23: m² | AH23: = | AI23: 70000000 | AJ23: mm² | AL23: Opgave 8 | AM23: 7 | AN23: ·10 | AO23: 1 | AP23: m² | AQ23: = | AR23: 7 | AS23: ·10 | AU23: mm² | AV23: 0 | AX23: 70 | AY23: m² | AZ23: = | BB23: mm² | BC23: 0
A24: 5 | B24: -3 | C24: 2 | D24: 4 | E24: 1 | F24: 2 | G24: 2 | H24: 3 | J24: Opgave 9 | K24: 1 | L24: 2 | M24: 2 | N24: cm² | O24: -4 | P24: 3 | Q24: dm² | R24: -2 | S24: 1 | T24: 0 | V24: 1 | W24: ·10^ | X24: 2 | Y24: cm² | Z24: = | AA24: 1 | AB24: ·10^ | AC24: 0 | AD24: dm² | AF24: 100 | AG24: cm² | AH24: = | AI24: 1 | AJ24: dm² | AL24: Opgave 9 | AM24: 1 | AN24: ·10 | AO24: 2 | AP24: cm² | AQ24: = | AR24: 1 | AS24: ·10 | AU24: dm² | AV24: 2 | AX24: 100 | AY24: cm² | AZ24: = | BB24: dm² | BC24: 0
A25: 4 | B25: 1 | C25: 2 | D25: 5 | E25: 6 | F25: 1 | G25: 1 | H25: 3 | J25: Opgave 10 | K25: 6 | L25: 1 | M25: 1 | N25: mm² | O25: -6 | P25: 3 | Q25: dm² | R25: -2 | S25: 6 | T25: -3 | V25: 6 | W25: ·10^ | X25: 1 | Y25: mm² | Z25: = | AA25: 6 | AB25: ·10^ | AC25: -3 | AD25: dm² | AF25: 60 | AG25: mm² | AH25: = | AI25: 0.006 | AJ25: dm² | AL25: Opgave 10 | AM25: 6 | AN25: ·10 | AO25: 1 | AP25: mm² | AQ25: = | AR25: 6 | AS25: ·10 | AU25: dm² | AV25: 0 | AX25: 60 | AY25: mm² | AZ25: = | BB25: dm² | BC25: 0
AL27: Aantal goed: | AV27: =COUNTIF(AV16:AV25,2) -> 1 | BC27: =COUNTIF(BC16:BC25,2) -> 0
AN31: Druk op de knop om jouw antwoorden te controleren
AN37: Druk op de knop voor 10 nieuwe opgaven
AL41: Heb je vragen of denk je dat er iets niet klopt, maak dan een schermafdruk (Alt-PrtScr),
AL42: plak de schermafdruk in een mailtje (Ctrl-v) en stuur het mailtje naar jouw vakdocent.
AL43: Gemaakt door: Frank van Doremalen
AL44: Dit werk valt onder een Creative Commons Naamsvermelding-NietCommercieel-GelijkDelen 4.0 Internationaal-licentie.

Sheet Volume zonder Liter
J1: Controle status | L1: 0
J3: rangnr | K3: eh | L3: fact | M3: mcht | AT3: 1 | BA3: 1
J4: 1 | K4: mm³ | L4: 1e-09 | M4: =LOG(L4) -> -9 | AT4: 0 | BA4: 0
J5: 2 | K5: cm³ | L5: 1e-06 | M5: =LOG(L5) -> -6 | AT5: 2 | BA5: 2
J6: 3 | K6: dm³ | L6: 0.001 | M6: -3
J7: 4 | K7: m³ | L7: 1 | M7: 0
J8: 5 | K8: mm³ | L8: 1e-09 | M8: -9
J9: 6 | K9: cm³ | L9: 1e-06 | M9: =LOG(L9) -> -6
J10: 7 | K10: dm³ | L10: 0.001 | M10: -3
AL13: Omrekenen van oppervlakte eenheden: mm2, cm2, dm2 en m2
AL14: Vul bij de machten van 10 alleen getallen tussen 9 en -9 in. Gebruik bij de decimale getallen de komma (0,0…) en niet de punt (0.00…).
A15: Random | E15: Random vastgezet | K15: rnd(get) | L15: rnd(mcht) | M15: rnd(eh1) | N15: eh1 | O15: mcht(eh1) | P15: rnd(eh2) | Q15: eh2 | R15: mcht(eh2) | S15: ant(get) | T15: ant(mcht)
A16: =ROUND((0.5+RAND()*9),0) -> 6 | B16: 0 | C16: =ROUND((0.5+RAND()*4),0) -> 1 | D16: =C16+ROUND((0.5+RAND()*3),0) -> 4 | E16: 9 | F16: 0 | G16: 4 | H16: 7 | J16: Opgave 1 | K16: =E16 -> 9 | L16: =F16 -> 0 | M16: =G16 -> 4 | N16: =VLOOKUP(M16,$J$4:$K$8,2,FALSE) -> m³ | O16: =VLOOKUP(M16,$J$4:$M$8,4) -> 0 | P16: =H16 -> 7 | Q16: =VLOOKUP(P16,$J$4:$K$10,2,FALSE) -> dm³ | R16: =VLOOKUP(P16,$J$4:$M$10,4,FALSE) -> -3 | S16: =K16 -> 9 | T16: =L16+O16-R16 -> 3 | V16: =K16 -> 9 | W16: ·10^ | X16: =L16 -> 0 | Y16: =N16 -> m³ | Z16: = | AA16: =S16 -> 9 | AB16: ·10^ | AC16: =T16 -> 3 | AD16: =Q16 -> dm³ | AF16: =K16*10^L16 -> 9 | AG16: =N16 -> m³ | AH16: = | AI16: =S16*10^T16 -> 9000 | AJ16: =Q16 -> dm³ | AL16: Opgave 1 | AM16: =K16 -> 9 | AN16: =N16 -> m³ | AO16: = | AP16: =S16 -> 9 | AQ16: ·10 | AS16: =Q16 -> dm³ | AT16: =IF($L$1=1,1,IF(AR16=T16,2,0)) -> 0 | AV16: =K16*10^L16 -> 9 | AW16: =N16 -> m³ | AX16: = | AZ16: =Q16 -> dm³ | BA16: =IF($L$1=1,1,IF(AY16=AI16,2,0)) -> 0
A17: =ROUND((0.5+RAND()*9),0) -> 6 | B17: 0 | C17: =ROUND((0.5+RAND()*4),0) -> 4 | D17: =C17+ROUND((0.5+RAND()*3),0) -> 7 | E17: 5 | F17: 0 | G17: 4 | H17: 6 | J17: Opgave 2 | K17: =E17 -> 5 | L17: 0 | M17: 4 | N17: =VLOOKUP(M17,$J$4:$K$8,2,FALSE) -> m³ | O17: =VLOOKUP(M17,$J$4:$M$8,4) -> 0 | P17: =H17 -> 6 | Q17: cm³ | R17: -6 | S17: =K17 -> 5 | T17: =L17+O17-R17 -> 6 | V17: =K17 -> 5 | W17: ·10^ | X17: =L17 -> 0 | Y17: =N17 -> m³ | Z17: = | AA17: =S17 -> 5 | AB17: ·10^ | AC17: =T17 -> 6 | AD17: =Q17 -> cm³ | AF17: =K17*10^L17 -> 5 | AG17: =N17 -> m³ | AH17: = | AI17: =S17*10^T17 -> 5000000 | AJ17: =Q17 -> cm³ | AL17: Opgave 2 | AM17: =K17 -> 5 | AN17: m³ | AO17: = | AP17: 5 | AQ17: ·10 | AS17: cm³ | AT17: =IF($L$1=1,1,IF(AR17=T17,2,0)) -> 0 | AV17: 5 | AW17: m³ | AX17: = | AZ17: cm³ | BA17: =IF($L$1=1,1,IF(AY17=AI17,2,0)) -> 0
A18: 4 | B18: 0 | C18: 3 | D18: 6 | E18: 1 | F18: 0 | G18: 2 | H18: 5 | J18: Opgave 3 | K18: 1 | L18: 0 | M18: 2 | N18: cm³ | O18: -6 | P18: 5 | Q18: mm³ | R18: -9 | S18: 1 | T18: 3 | V18: 1 | W18: ·10^ | X18: 0 | Y18: cm³ | Z18: = | AA18: 1 | AB18: ·10^ | AC18: 3 | AD18: mm³ | AF18: 1 | AG18: cm³ | AH18: = | AI18: 1000 | AJ18: mm³ | AL18: Opgave 3 | AM18: 1 | AN18: cm³ | AO18: = | AP18: 1 | AQ18: ·10 | AS18: mm³ | AT18: 0 | AV18: 1 | AW18: cm³ | AX18: = | AZ18: mm³ | BA18: 0
A19: 5 | B19: 0 | C19: 2 | D19: 3 | E19: 9 | F19: 0 | G19: 1 | H19: 4 | J19: Opgave 4 | K19: 9 | L19: 0 | M19: 1 | N19: mm³ | O19: -9 | P19: 4 | Q19: m³ | R19: 0 | S19: 9 | T19: -9 | V19: 9 | W19: ·10^ | X19: 0 | Y19: mm³ | Z19: = | AA19: 9 | AB19: ·10^ | AC19: -9 | AD19: m³ | AF19: 9 | AG19: mm³ | AH19: = | AI19: 9e-09 | AJ19: m³ | AL19: Opgave 4 | AM19: 9 | AN19: mm³ | AO19: = | AP19: 9 | AQ19: ·10 | AS19: m³ | AT19: 0 | AV19: 9 | AW19: mm³ | AX19: = | AZ19: m³ | BA19: 0
A20: 1 | B20: 0 | C20: 4 | D20: 5 | E20: 5 | F20: 0 | G20: 1 | H20: 4 | J20: Opgave 5 | K20: 5 | L20: 0 | M20: 1 | N20: mm³ | O20: -9 | P20: 4 | Q20: m³ | R20: 0 | S20: 5 | T20: -9 | V20: 5 | W20: ·10^ | X20: 0 | Y20: mm³ | Z20: = | AA20: 5 | AB20: ·10^ | AC20: -9 | AD20: m³ | AF20: 5 | AG20: mm³ | AH20: = | AI20: 5e-09 | AJ20: m³ | AL20: Opgave 5 | AM20: 5 | AN20: mm³ | AO20: = | AP20: 5 | AQ20: ·10 | AS20: m³ | AT20: 0 | AV20: 5 | AW20: mm³ | AX20: = | AZ20: m³ | BA20: 0
A21: 1 | B21: 0 | C21: 4 | D21: 6 | E21: 6 | F21: 0 | G21: 2 | H21: 4 | J21: Opgave 6 | K21: 6 | L21: 0 | M21: 2 | N21: cm³ | O21: -6 | P21: 4 | Q21: m³ | R21: 0 | S21: 6 | T21: -6 | V21: 6 | W21: ·10^ | X21: 0 | Y21: cm³ | Z21: = | AA21: 6 | AB21: ·10^ | AC21: -6 | AD21: m³ | AF21: 6 | AG21: cm³ | AH21: = | AI21: 6e-06 | AJ21: m³ | AL21: Opgave 6 | AM21: 6 | AN21: cm³ | AO21: = | AP21: 6 | AQ21: ·10 | AS21: m³ | AT21: 0 | AV21: 6 | AW21: cm³ | AX21: = | AZ21: m³ | BA21: 0
A22: 9 | B22: 0 | C22: 2 | D22: 3 | E22: 3 | F22: 0 | G22: 3 | H22: 4 | J22: Opgave 7 | K22: 3 | L22: 0 | M22: 3 | N22: dm³ | O22: -3 | P22: 4 | Q22: m³ | R22: 0 | S22: 3 | T22: -3 | V22: 3 | W22: ·10^ | X22: 0 | Y22: dm³ | Z22: = | AA22: 3 | AB22: ·10^ | AC22: -3 | AD22: m³ | AF22: 3 | AG22: dm³ | AH22: = | AI22: 0.003 | AJ22: m³ | AL22: Opgave 7 | AM22: 3 | AN22: dm³ | AO22: = | AP22: 3 | AQ22: ·10 | AS22: m³ | AT22: 0 | AV22: 3 | AW22: dm³ | AX22: = | AZ22: m³ | BA22: 0
A23: 6 | B23: 0 | C23: 4 | D23: 5 | E23: 1 | F23: 0 | G23: 4 | H23: 6 | J23: Opgave 8 | K23: 1 | L23: 0 | M23: 4 | N23: m³ | O23: 0 | P23: 6 | Q23: cm³ | R23: -6 | S23: 1 | T23: 6 | V23: 1 | W23: ·10^ | X23: 0 | Y23: m³ | Z23: = | AA23: 1 | AB23: ·10^ | AC23: 6 | AD23: cm³ | AF23: 1 | AG23: m³ | AH23: = | AI23: 1000000 | AJ23: cm³ | AL23: Opgave 8 | AM23: 1 | AN23: m³ | AO23: = | AP23: 1 | AQ23: ·10 | AS23: cm³ | AT23: 0 | AV23: 1 | AW23: m³ | AX23: = | AZ23: cm³ | BA23: 0
A24: 7 | B24: 0 | C24: 1 | D24: 2 | E24: 3 | F24: 0 | G24: 1 | H24: 2 | J24: Opgave 9 | K24: 3 | L24: 0 | M24: 1 | N24: mm³ | O24: -9 | P24: 2 | Q24: cm³ | R24: -6 | S24: 3 | T24: -3 | V24: 3 | W24: ·10^ | X24: 0 | Y24: mm³ | Z24: = | AA24: 3 | AB24: ·10^ | AC24: -3 | AD24: cm³ | AF24: 3 | AG24: mm³ | AH24: = | AI24: 0.003 | AJ24: cm³ | AL24: Opgave 9 | AM24: 3 | AN24: mm³ | AO24: = | AP24: 3 | AQ24: ·10 | AS24: cm³ | AT24: 0 | AV24: 3 | AW24: mm³ | AX24: = | AZ24: cm³ | BA24: 0
A25: 9 | B25: 0 | C25: 3 | D25: 4 | E25: 6 | F25: 0 | G25: 4 | H25: 5 | J25: Opgave 10 | K25: 6 | L25: 0 | M25: 4 | N25: m³ | O25: 0 | P25: 5 | Q25: mm³ | R25: -9 | S25: 6 | T25: 9 | V25: 6 | W25: ·10^ | X25: 0 | Y25: m³ | Z25: = | AA25: 6 | AB25: ·10^ | AC25: 9 | AD25: mm³ | AF25: 6 | AG25: m³ | AH25: = | AI25: 6000000000 | AJ25: mm³ | AL25: Opgave 10 | AM25: 6 | AN25: m³ | AO25: = | AP25: 6 | AQ25: ·10 | AS25: mm³ | AT25: 0 | AV25: 6 | AW25: m³ | AX25: = | AZ25: mm³ | BA25: 0
AL27: Aantal goed: | AT27: =COUNTIF(AT16:AT25,2) -> 0 | BA27: =COUNTIF(BA16:BA25,2) -> 0
AN31: Druk op de knop om jouw antwoorden te controleren
AN37: Druk op de knop voor 10 nieuwe opgaven
AL41: Heb je vragen of denk je dat er iets niet klopt, maak dan een schermafdruk (Alt-PrtScr),
AL42: plak de schermafdruk in een mailtje (Ctrl-v) en stuur het mailtje naar jouw vakdocent.
AL43: Gemaakt door: Frank van Doremalen
AL44: Dit werk valt onder een Creative Commons Naamsvermelding-NietCommercieel-GelijkDelen 4.0 Internationaal-licentie.

Sheet Volume met Liter
J1: Controle status | L1: 0
J3: rangnr | K3: eh | L3: fact | M3: mcht | AT3: 1 | BA3: 1
J4: 1 | K4: mm³ | L4: 1e-09 | M4: =LOG(L4) -> -9 | AT4: 0 | BA4: 0
J5: 2 | K5: cm³ | L5: 1e-06 | M5: =LOG(L5) -> -6 | AT5: 2 | BA5: 2
J6: 3 | K6: dm³ | L6: 0.001 | M6: -3
J7: 4 | K7: m³ | L7: 1 | M7: 0
J8: 5 | K8: mL | L8: 1e-06 | M8: -6
J9: 6 | K9: cL | L9: 1e-05 | M9: =LOG(L9) -> -5
J10: 7 | K10: dL | L10: 0.0001 | M10: -4
J11: 8 | K11: L | L11: 0.001 | M11: -3
J12: 9 | K12: mm³ | L12: 1e-09 | M12: =LOG(L12) -> -9
J13: 10 | K13: cm³ | L13: 1e-06 | M13: -6
J14: 11 | K14: dm³ | L14: 0.001 | M14: -3
J15: 12 | K15: m³ | L15: 1 | M15: 0
J16: 13 | K16: mL | L16: 1e-06 | M16: -6
J17: 14 | K17: cL | L17: 1e-05 | M17: =LOG(L17) -> -5
J18: 15 | K18: dL | L18: 0.0001 | M18: -4
AL21: Omrekenen van oppervlakte eenheden: mm2, cm2, dm2 en m2
AL22: Vul bij de machten van 10 alleen getallen tussen 9 en -9 in. Gebruik bij de decimale getallen de komma (0,0…) en niet de punt (0.00…).
A23: Random | E23: Random vastgezet | K23: rnd(get) | L23: rnd(mcht) | M23: rnd(eh1) | N23: eh1 | O23: mcht(eh1) | P23: rnd(eh2) | Q23: eh2 | R23: mcht(eh2) | S23: ant(get) | T23: ant(mcht)
A24: =ROUND((0.5+RAND()*9),0) -> 5 | B24: 0 | C24: =ROUND((0.5+RAND()*8),0) -> 4 | D24: =C24+ROUND((0.5+RAND()*7),0) -> 8 | E24: 1 | F24: 0 | G24: 4 | H24: 5 | J24: Opgave 1 | K24: =E24 -> 1 | L24: =F24 -> 0 | M24: =G24 -> 4 | N24: =VLOOKUP(M24,$J$4:$K$18,2,FALSE) -> m³ | O24: =VLOOKUP(M24,$J$4:$M$18,4) -> 0 | P24: =H24 -> 5 | Q24: =VLOOKUP(P24,$J$4:$K$18,2,FALSE) -> mL | R24: =VLOOKUP(P24,$J$4:$M$18,4,FALSE) -> -6 | S24: =K24 -> 1 | T24: =L24+O24-R24 -> 6 | V24: =K24 -> 1 | W24: ·10^ | X24: =L24 -> 0 | Y24: =N24 -> m³ | Z24: = | AA24: =S24 -> 1 | AB24: ·10^ | AC24: =T24 -> 6 | AD24: =Q24 -> mL | AF24: =K24*10^L24 -> 1 | AG24: =N24 -> m³ | AH24: = | AI24: =S24*10^T24 -> 1000000 | AJ24: =Q24 -> mL | AL24: Opgave 1 | AM24: =K24 -> 1 | AN24: =N24 -> m³ | AO24: = | AP24: =S24 -> 1 | AQ24: ·10 | AS24: =Q24 -> mL | AT24: =IF($L$1=1,1,IF(AR24=T24,2,0)) -> 0 | AV24: =K24*10^L24 -> 1 | AW24: =N24 -> m³ | AX24: = | AZ24: =Q24 -> mL | BA24: =IF($L$1=1,1,IF(AY24=AI24,2,0)) -> 0
A25: =ROUND((0.5+RAND()*9),0) -> 8 | B25: 0 | C25: =ROUND((0.5+RAND()*8),0) -> 4 | D25: =C25+ROUND((0.5+RAND()*7),0) -> 10 | E25: 5 | F25: 0 | G25: 7 | H25: 10 | J25: Opgave 2 | K25: =E25 -> 5 | L25: =F25 -> 0 | M25: =G25 -> 7 | N25: =VLOOKUP(M25,$J$4:$K$18,2,FALSE) -> dL | O25: =VLOOKUP(M25,$J$4:$M$18,4) -> -4 | P25: =H25 -> 10 | Q25: =VLOOKUP(P25,$J$4:$K$18,2,FALSE) -> cm³ | R25: =VLOOKUP(P25,$J$4:$M$18,4,FALSE) -> -6 | S25: =K25 -> 5 | T25: =L25+O25-R25 -> 2 | V25: =K25 -> 5 | W25: ·10^ | X25: =L25 -> 0 | Y25: =N25 -> dL | Z25: = | AA25: =S25 -> 5 | AB25: ·10^ | AC25: =T25 -> 2 | AD25: =Q25 -> cm³ | AF25: =K25*10^L25 -> 5 | AG25: =N25 -> dL | AH25: = | AI25: =S25*10^T25 -> 500 | AJ25: =Q25 -> cm³ | AL25: Opgave 2 | AM25: =K25 -> 5 | AN25: dL | AO25: = | AP25: 5 | AQ25: ·10 | AS25: cm³ | AT25: =IF($L$1=1,1,IF(AR25=T25,2,0)) -> 0 | AV25: 5 | AW25: dL | AX25: = | AZ25: cm³ | BA25: =IF($L$1=1,1,IF(AY25=AI25,2,0)) -> 0
A26: 5 | B26: 0 | C26: 6 | D26: 9 | E26: 1 | F26: 0 | G26: 8 | H26: 11 | J26: Opgave 3 | K26: 1 | L26: 0 | M26: 8 | N26: L | O26: -3 | P26: 11 | Q26: dm³ | R26: -3 | S26: 1 | T26: 0 | V26: 1 | W26: ·10^ | X26: 0 | Y26: L | Z26: = | AA26: 1 | AB26: ·10^ | AC26: 0 | AD26: dm³ | AF26: 1 | AG26: L | AH26: = | AI26: 1 | AJ26: dm³ | AL26: Opgave 3 | AM26: 1 | AN26: L | AO26: = | AP26: 1 | AQ26: ·10 | AS26: dm³ | AT26: 2 | AV26: 1 | AW26: L | AX26: = | AZ26: dm³ | BA26: 0
A27: 4 | B27: 0 | C27: 5 | D27: 7 | E27: 8 | F27: 0 | G27: 4 | H27: 6 | J27: Opgave 4 | K27: 8 | L27: 0 | M27: 4 | N27: m³ | O27: 0 | P27: 6 | Q27: cL | R27: -5 | S27: 8 | T27: 5 | V27: 8 | W27: ·10^ | X27: 0 | Y27: m³ | Z27: = | AA27: 8 | AB27: ·10^ | AC27: 5 | AD27: cL | AF27: 8 | AG27: m³ | AH27: = | AI27: 800000 | AJ27: cL | AL27: Opgave 4 | AM27: 8 | AN27: m³ | AO27: = | AP27: 8 | AQ27: ·10 | AS27: cL | AT27: 0 | AV27: 8 | AW27: m³ | AX27: = | AZ27: cL | BA27: 0
A28: 8 | B28: 0 | C28: 2 | D28: 3 | E28: 5 | F28: 0 | G28: 6 | H28: 11 | J28: Opgave 5 | K28: 5 | L28: 0 | M28: 6 | N28: cL | O28: -5 | P28: 11 | Q28: dm³ | R28: -3 | S28: 5 | T28: -2 | V28: 5 | W28: ·10^ | X28: 0 | Y28: cL | Z28: = | AA28: 5 | AB28: ·10^ | AC28: -2 | AD28: dm³ | AF28: 5 | AG28: cL | AH28: = | AI28: 0.05 | AJ28: dm³ | AL28: Opgave 5 | AM28: 5 | AN28: cL | AO28: = | AP28: 5 | AQ28: ·10 | AS28: dm³ | AT28: 0 | AV28: 5 | AW28: cL | AX28: = | AZ28: dm³ | BA28: 0
A29: 9 | B29: 0 | C29: 3 | D29: 5 | E29: 5 | F29: 0 | G29: 1 | H29: 8 | J29: Opgave 6 | K29: 5 | L29: 0 | M29: 1 | N29: mm³ | O29: -9 | P29: 8 | Q29: L | R29: -3 | S29: 5 | T29: -6 | V29: 5 | W29: ·10^ | X29: 0 | Y29: mm³ | Z29: = | AA29: 5 | AB29: ·10^ | AC29: -6 | AD29: L | AF29: 5 | AG29: mm³ | AH29: = | AI29: 5e-06 | AJ29: L | AL29: Opgave 6 | AM29: 5 | AN29: mm³ | AO29: = | AP29: 5 | AQ29: ·10 | AS29: L | AT29: 0 | AV29: 5 | AW29: mm³ | AX29: = | AZ29: L | BA29: 0
A30: 3 | B30: 0 | C30: 8 | D30: 12 | E30: 1 | F30: 0 | G30: 6 | H30: 10 | J30: Opgave 7 | K30: 1 | L30: 0 | M30: 6 | N30: cL | O30: -5 | P30: 10 | Q30: cm³ | R30: -6 | S30: 1 | T30: 1 | V30: 1 | W30: ·10^ | X30: 0 | Y30: cL | Z30: = | AA30: 1 | AB30: ·10^ | AC30: 1 | AD30: cm³ | AF30: 1 | AG30: cL | AH30: = | AI30: 10 | AJ30: cm³ | AL30: Opgave 7 | AM30: 1 | AN30: cL | AO30: = | AP30: 1 | AQ30: ·10 | AS30: cm³ | AT30: 0 | AV30: 1 | AW30: cL | AX30: = | AZ30: cm³ | BA30: 0
A31: 8 | B31: 0 | C31: 1 | D31: 2 | E31: 1 | F31: 0 | G31: 8 | H31: 11 | J31: Opgave 8 | K31: 1 | L31: 0 | M31: 8 | N31: L | O31: -3 | P31: 11 | Q31: dm³ | R31: -3 | S31: 1 | T31: 0 | V31: 1 | W31: ·10^ | X31: 0 | Y31: L | Z31: = | AA31: 1 | AB31: ·10^ | AC31: 0 | AD31: dm³ | AF31: 1 | AG31: L | AH31: = | AI31: 1 | AJ31: dm³ | AL31: Opgave 8 | AM31: 1 | AN31: L | AO31: = | AP31: 1 | AQ31: ·10 | AS31: dm³ | AT31: 2 | AV31: 1 | AW31: L | AX31: = | AZ31: dm³ | BA31: 0
A32: 4 | B32: 0 | C32: 1 | D32: 8 | E32: 2 | F32: 0 | G32: 1 | H32: 6 | J32: Opgave 9 | K32: 2 | L32: 0 | M32: 1 | N32: mm³ | O32: -9 | P32: 6 | Q32: cL | R32: -5 | S32: 2 | T32: -4 | V32: 2 | W32: ·10^ | X32: 0 | Y32: mm³ | Z32: = | AA32: 2 | AB32: ·10^ | AC32: -4 | AD32: cL | AF32: 2 | AG32: mm³ | AH32: = | AI32: 0.0002 | AJ32: cL | AL32: Opgave 9 | AM32: 2 | AN32: mm³ | AO32: = | AP32: 2 | AQ32: ·10 | AS32: cL | AT32: 0 | AV32: 2 | AW32: mm³ | AX32: = | AZ32: cL | BA32: 0
A33: 7 | B33: 0 | C33: 1 | D33: 3 | E33: 5 | F33: 0 | G33: 3 | H33: 6 | J33: Opgave 10 | K33: 5 | L33: 0 | M33: 3 | N33: dm³ | O33: -3 | P33: 6 | Q33: cL | R33: -5 | S33: 5 | T33: 2 | V33: 5 | W33: ·10^ | X33: 0 | Y33: dm³ | Z33: = | AA33: 5 | AB33: ·10^ | AC33: 2 | AD33: cL | AF33: 5 | AG33: dm³ | AH33: = | AI33: 500 | AJ33: cL | AL33: Opgave 10 | AM33: 5 | AN33: dm³ | AO33: = | AP33: 5 | AQ33: ·10 | AS33: cL | AT33: 0 | AV33: 5 | AW33: dm³ | AX33: = | AZ33: cL | BA33: 0
AL35: Aantal goed: | AT35: =COUNTIF(AT24:AT33,2) -> 2 | BA35: =COUNTIF(BA24:BA33,2) -> 0
AN39: Druk op de knop om jouw antwoorden te controleren
AN45: Druk op de knop voor 10 nieuwe opgaven
AL49: Heb je vragen of denk je dat er iets niet klopt, maak dan een schermafdruk (Alt-PrtScr),
AL50: plak de schermafdruk in een mailtje (Ctrl-v) en stuur het mailtje naar jouw vakdocent.
AL51: Gemaakt door: Frank van Doremalen
AL52: Dit werk valt onder een Creative Commons Naamsvermelding-NietCommercieel-GelijkDelen 4.0 Internationaal-licentie.
